[Event "Croatian 1B League 2022"]
[Site "Porec"]
[Date "2022.09.24"]
[Round "1.11"]
[White "Novak, Ivan"]
[Black "Sekelja, Marko"]
[Result "1-0"]
[ECO "D03"]
[WhiteElo "2247"]
[BlackElo "2088"]
[Annotator "TA"]
[PlyCount "73"]
[EventDate "2022.09.24"]
[EventType "team-tourn"]
[EventCountry "CRO"]
[SourceTitle "playchess.com"]
[Source "ChessBase"]
[SourceQuality "1"]
[TimeControl "40/5400+30:1800+30"]

{[%evp 16,73,0,-8,1,-17,-26,-47,-7,-12,0,-5,5,0,0,-26,-14,-8,-13,-31,-28,-40,42,32,119,119,164,121,165,119,175,176,169,180,185,171,305,300,295,256,423,410,771,319,272,79,79,79,79,79,84,80,29994,29995,29995,29996,29996,29997,29997,29998]} 1. d4 {[%emt 0:01:00]} d5 {[%emt 0:01:00]} 2. Nf3 {[%emt 0:00:00]} Nf6 {[%emt 0:00:00]} 3. Bg5 {[%emt 0:00:00]} e6 {[%emt 0:08:00]} 4. Nbd2 {[%emt 0:01:30]} Be7 {[%emt 0:00:30]} 5. e3 {[%emt 0:00:30]} Nbd7 {[%emt 0:00:30]} 6. Bd3 {[%emt 0:00:30]} O-O {[%emt 0:00:30]} 7. O-O {[%emt 0:00:30]} b6 {[%emt 0:00:30]} 8. c3 {[%emt 0:00:30]} Bb7 {[%emt 0:00:30]} 9. Qc2 {[%emt 0:00:30]} c5 {[%emt 0:00:30] D03: 1 d4 d5 2 Nf3 Nf6 3 Bg5, including Torre Attack with early ...d5.} 10. Bxf6 {[%emt 0:00:30]} Nxf6 {[%emt 0:00:30]} 11. Ne5 {[%emt 0:00:30]} h6 {[%emt 0:00:30] Black is slightly better.} 12. f4 {[%emt 0:00:30]} Bd6 {[%emt 0:00:30]} 13. Rae1 {[%emt 0:00:30] [#]} Nd7 $146 {[%emt 0:00:30]} ({Predecessor:} 13... Rc8 14. Ndf3 c4 15. Be2 Ne4 16. Nxc4 Rxc4 {0-1 (16) Samusenko,M (1957)-Davydov,S (2196) Nabereznye Chelny 2010}) 14. Qa4 {[%emt 0:00:30]} Nf6 {[%emt 0:00:30]} 15. Bb1 {[%emt 0:00:30]} Qc7 {[%emt 0:00:30]} 16. Qd1 {[%emt 0:00:30]} Ne4 {[%emt 0:00:30]} 17. Bxe4 {[%emt 0:00:30]} dxe4 {[%emt 0:00:30]} 18. Rf2 {[%emt 0:00:30]} f5 {[%emt 0:00:30]} (18... f6 $15 19. Ng6 Rfd8) 19. Ndc4 $14 {[%emt 0:00:30] Pair of Knights!} Rad8 {[%emt 0:00:30]} ({Black should play} 19... Be7 $14) 20. Nxd6 $16 {[%emt 0:00:30]} Rxd6 {[%emt 0:00:30]} 21. Rd2 {[%emt 0:00:30]} cxd4 {[%emt 0:00:30]} 22. cxd4 {[%emt 0:00:30]} ({But not} 22. exd4 $6 g5 $14) ({Resist} 22. Rxd4 $6 Rxd4 23. exd4 (23. cxd4 Bd5 $11) (23. Qxd4 Rd8 $14) 23... Qd6 $14) 22... Rc8 {[%emt 0:00:30]} (22... Rdd8 $16) 23. Qh5 $18 {[%emt 0:00:30]} Qe7 {[%emt 0:00:30] [#]} 24. g4 $1 {[%emt 0:00:30]} fxg4 {[%emt 0:00:30]} 25. Rg2 {[%emt 0:00:30]} Qe8 {[%emt 0:00:30]} (25... Qf8 {was called for.} 26. Qxg4 Rc7) 26. Qxg4 {[%emt 0:00:30][%csl Gg2][%cal Rg4g7]} Rc7 {[%emt 0:00:30] [#]} 27. Kh1 $1 {[%emt 0:00:30] Strongly threatening Reg1.} Rd8 $2 {[%emt 0:00:30]} (27... Bd5 {keeps fighting.} 28. Reg1 Qf8) 28. Reg1 {[%emt 0:00:30][%cal Rg4g7] And now Qxg7+! would win.} Rdc8 {[%emt 0:00:30]} (28... Qf8 $142 29. Qxe6+ Kh7 30. Qg6+ Kh8) 29. Qh4 {[%emt 0:00:30]} (29. Qh3 $142 {White threatens Qxh6 and mate.} Kh7 30. f5) 29... Kh7 {[%emt 0:00:30]} 30. Rg6 $2 $40 {[%emt 0:00:30][%mdl 128] White wants a kill.} (30. Qg3 $18 Qf8 31. Qg6+ Kh8 32. Qxe6) 30... Bd5 $16 {[%emt 0:00:30]} 31. Qg4 {[%emt 0:00:30][%cal Rg6g7] White is more active.} Qf8 {[%emt 0:00:30]} 32. a3 {[%emt 0:00:30]} a6 {[%emt 0:00:30]} 33. Qh5 {[%emt 0:00:30]} Rc1 $2 {[%emt 0:00:30][%mdl 8192] [#] Black cannot hold the game after this.} (33... a5 $16 34. R6g2 Ra7) 34. Rxh6+ $3 {[%emt 0:00:30][%mdl 512] White mates.} gxh6 {[%emt 0:00:30]} 35. Qg6+ {[%emt 0:00:30]} Kh8 {[%emt 0:00:30]} 36. Nf7+ {[%emt 0:00:30][%mdl 64] Deflection} Qxf7 {[%emt 0:00:30]} 37. Qxh6+ {[%emt 0:00:30] Weighted Error Value: White=0.32/Black=0.58} 1-0

[Event "Croatian 1B League 2022"]
[Site "Porec"]
[Date "2022.09.24"]
[Round "1.12"]
[White "Tomas, Ante"]
[Black "Havas, Juraj"]
[Result "1-0"]
[ECO "B03"]
[WhiteElo "2137"]
[BlackElo "2074"]
[Annotator "TA"]
[PlyCount "83"]
[EventDate "2022.09.24"]
[EventType "team-tourn"]
[EventCountry "CRO"]
[SourceTitle "playchess.com"]
[Source "ChessBase"]
[SourceQuality "1"]
[TimeControl "40/5400+30:1800+30"]

{[%evp 18,83,29,31,54,31,34,25,68,57,72,78,60,60,113,113,137,87,88,80,147,67,70,58,93,88,156,145,293,303,295,292,283,249,387,387,383,378,360,303,379,370,690,294,281,241,236,232,235,231,213,222,326,341,337,309,320,143,543,537,602,562,597,579,611,612,884,852]} 1. e4 {[%emt 0:01:00][%cal Be2e4,Be4e5][%mdl 32]} Nf6 {[%emt 0:01:00]} 2. e5 {[%emt 0:00:00]} Nd5 {[%emt 0:00:00]} 3. d4 {[%emt 0:00:00]} d6 {[%emt 0:00:00]} 4. c4 {[%emt 0:00:30]} Nb6 {[%emt 0:00:00]} 5. f4 {[%emt 0:00:30]} dxe5 {[%emt 0:01:00]} 6. fxe5 {[%emt 0:00:30]} Nc6 {[%emt 0:00:30]} 7. Be3 {[%emt 0:01:30]} Bf5 {[%emt 0:00:30]} 8. Nc3 {[%emt 0:00:00]} e6 {[%emt 0:01:30]} 9. Nf3 {[%emt 0:00:00]} Bb4 {[%emt 0:00:30]} 10. Be2 {[%emt 0:03:30]} Na5 {[%emt 0:03:30] B03: Alekhine's Defence: Four Pawns Attack.} 11. c5 {[%emt 0:00:30]} Nd5 {[%emt 0:04:30]} 12. Bd2 {[%emt 0:00:30] [#] Hoping for Nxd5.} Bxc3 {[%emt 0:01:30] White has an edge.} 13. bxc3 {[%emt 0:01:30]} Nc6 {[%emt 0:02:30]} 14. O-O {[%emt 0:06:30]} O-O {[%emt 0:02:30]} 15. Qe1 {[%emt 0:03:30]} Nde7 {[%emt 0:12:30] [#]} (15... b6 $14) 16. Nh4 $146 {[%emt 0:06:30]} ({Predecessor:} 16. Kh1 Bg6 17. Nh4 Qd5 18. Bg5 Rab8 19. Rf4 b6 20. cxb6 Rxb6 21. Bd1 Qd7 22. Nxg6 Nxg6 {0-1 (65) Aydincelebi,K (1977)-Acar,U (1930) Kocaeli 2015}) 16... Bg6 {[%emt 0:00:30]} 17. Qg3 {[%emt 0:00:30]} ({White should try} 17. Nxg6 Nxg6 18. Bf3) 17... Qd7 {[%emt 0:00:30]} 18. Nxg6 {[%emt 0:00:30]} Nxg6 {[%emt 0:00:30]} (18... fxg6 $142 19. Qg4 Qd5) 19. Be3 {[%emt 0:00:30]} (19. Rad1 $16) 19... Nce7 $1 $14 {[%emt 0:00:30]} 20. Bd3 {[%emt 0:00:30] White is much more active. The black rooks are badly placed.} Nd5 {[%emt 0:00:30] [#]} 21. Bd2 $1 {[%emt 0:00:30]} c6 {[%emt 0:00:30]} (21... f5 $142) 22. h4 $16 {[%emt 0:00:30][%cal Bh2h4,Bh4h5,Bh5h6][%mdl 32]} Kh8 {[%emt 0:00:30]} (22... f5 $16 {was necessary.} 23. exf6 Nxf6) 23. h5 $18 {[%emt 0:00:30]} Nge7 {[%emt 0:00:30]} 24. h6 {[%emt 0:00:30][%csl Gh6][%cal Rg3g7]} (24. c4 $6 Nc7 $18) 24... g6 {[%emt 0:00:30]} 25. Qh4 {[%emt 0:00:30]} ({Don't do} 25. c4 Nc7 $18) 25... Ng8 {[%emt 0:00:30]} (25... Kg8 $142 26. Rab1 Rab8) 26. Bg5 {[%emt 0:00:30]} f5 {[%emt 0:00:30]} 27. exf6 {[%emt 0:00:30][%cal Of6f7] Strongly threatening f7!} Rf7 {[%emt 0:00:30]} 28. Qe1 {[%emt 0:00:30]} Raf8 {[%emt 0:00:30]} 29. Rd1 {[%emt 0:00:30]} Ndxf6 $2 {[%emt 0:00:30]} (29... a5 30. c4 Nb4) 30. Qe5 {[%emt 0:00:30]} (30. Bc4 $142 Qc7 31. Qxe6) 30... Qd5 {[%emt 0:00:30]} 31. Rde1 {[%emt 0:00:30][%cal Bd1e1,Be1e5,Be5e6,Be6e8][%mdl 32]} Qxe5 {[%emt 0:00:30]} 32. Rxe5 {[%emt 0:00:30]} ({Weaker is} 32. dxe5 Nd7 $16) 32... Ng4 {[%emt 0:00:30]} 33. Rxf7 {[%emt 0:00:30]} ({Resist} 33. Rxe6 $6 N4xh6 34. Rb1 Rd7) 33... Rxf7 {[%emt 0:00:30]} 34. Rxe6 {[%emt 0:00:30] And now Re8 would win.} N8xh6 {[%emt 0:00:30]} (34... N4xh6 {keeps fighting.} 35. Bc4 Rf8) 35. Re8+ {[%emt 0:00:30]} Kg7 {[%emt 0:00:30]} 36. Bc4 {[%emt 0:00:30]} Rf5 {[%emt 0:00:30]} 37. Bd8 {[%emt 0:00:30]} (37. Bc1 $18 {and White stays clearly on top.}) 37... Nf7 $2 {[%emt 0:00:30][%mdl 8192] Loses the game.} (37... Rf8 $16 {is more resistant.} 38. Re7+ Kh8) 38. Be6 {[%emt 0:00:30] White is clearly winning.} Rf4 {[%emt 0:00:30]} 39. Bc7 {[%emt 0:00:30]} Re4 {[%emt 0:00:30][%cal Re4e1]} 40. Bxf7 {[%emt 0:00:30] A strong pair of Bishops.} Rxe8 {[%emt 0:00:30]} 41. Bxe8 {[%emt 0:30:30]} Nf6 {[%emt 0:30:30] Prevents Bd7.} 42. Be5 {[%emt 0:00:30] Weighted Error Value: White=0.30/Black=0.65} 1-0

[Event "Croatian 1B League 2022"]
[Site "Porec"]
[Date "2022.09.25"]
[Round "2.1"]
[White "Dobrovoljc, Vid"]
[Black "Aczel, Gergely"]
[Result "1/2-1/2"]
[ECO "B90"]
[WhiteElo "2402"]
[BlackElo "2474"]
[Annotator "TA"]
[PlyCount "100"]
[EventDate "2022.09.24"]
[EventType "team-tourn"]
[EventCountry "CRO"]
[SourceTitle "playchess.com"]
[Source "ChessBase"]
[SourceQuality "1"]
[TimeControl "40/5400+30:1800+30"]

{[%evp 11,100,-3,-5,-36,-33,-27,14,10,49,24,98,118,103,108,85,101,125,114,158,166,150,153,157,139,155,150,156,154,161,152,158,158,158,166,154,162,163,160,169,169,171,180,191,200,192,185,207,206,202,201,177,185,175,129,129,81,102,50,50,50,50,50,50,50,102,102,102,102,102,102,102,102,102,102,102,102,102,102,102,102,102,102,102,102,102,102,102,102,102,102,102]} 1. e4 {[%emt 0:00:17]} c5 {[%emt 0:00:03]} 2. Nf3 {[%emt 0:00:28]} d6 {[%emt 0:00:06]} 3. d4 {[%emt 0:00:25]} cxd4 {[%emt 0:00:02]} 4. Nxd4 {[%emt 0:00:11]} Nf6 {[%emt 0:00:04]} 5. Nc3 {[%emt 0:00:07]} a6 {[%emt 0:00:05]} 6. Rg1 {[%emt 0:00:53]} b5 {[%emt 0:05:00]} 7. a4 {[%emt 0:00:28] B90: Sicilian Najdorf: Unusual White 6th moves, 6 Be3 Ng4 and 6 Be3 e5.} b4 {[%emt 0:00:10]} 8. Nd5 {[%emt 0:00:03]} Bb7 {[%emt 0:05:39]} 9. Nxf6+ {[%emt 0:06:11] The position is equal.} exf6 {[%emt 0:00:56] [#]} 10. Bd2 $146 {[%emt 0:14:16]} ({Predecessor:} 10. Qe2 Qe7 11. Bf4 Qxe4 12. Qxe4+ Bxe4 13. O-O-O g5 14. Re1 d5 15. Bxb8 Bc5 16. Rd1 Rxb8 17. Bxa6 {1-0 (48) Radvanyi,T (2133)-Salanki,E (2309) Hungary 2000}) 10... d5 {[%emt 0:02:48]} (10... Nc6 $11 {keeps the balance.} 11. Nxc6 Bxc6) 11. exd5 $16 {[%emt 0:00:41] White is more active.} Qxd5 {[%emt 0:42:26]} 12. Qe2+ {[%emt 0:05:24]} Qe5 {[%emt 0:00:08]} 13. O-O-O {[%emt 0:12:34] [#] And now Qc4 would win.} Nd7 {[%emt 0:11:22]} 14. Be3 {[%emt 0:22:19]} g6 {[%emt 0:14:32]} 15. f4 $36 {[%emt 0:09:00][%mdl 2048] Black is under strong pressure.} Qe7 {[%emt 0:00:11] [#]} 16. g3 $1 {[%emt 0:10:15] Strongly threatening Bg2.} Bg7 {[%emt 0:04:53]} 17. Bd2 {[%emt 0:00:14]} Qxe2 {[%emt 0:00:10]} 18. Bxe2 {[%emt 0:00:14]} Bf8 {[%emt 0:05:35]} 19. Bc4 {[%emt 0:05:53]} O-O-O {[%emt 0:00:22]} 20. Bxf7 {[%emt 0:03:52] Ne6 is the strong threat.} Bc5 {[%emt 0:00:02]} 21. Ne6 {[%emt 0:00:13]} Bxg1 {[%emt 0:00:08]} 22. Nxd8 {[%emt 0:01:28]} Rxd8 {[%emt 0:01:48]} 23. Rxg1 {[%emt 0:00:08]} a5 {[%emt 0:00:42]} 24. Be3 {[%emt 0:02:55] Against Nc5} Rf8 {[%emt 0:00:01]} 25. Bc4 {[%emt 0:00:15]} Re8 {[%emt 0:00:15]} 26. Bf2 {[%emt 0:00:22]} Kc7 {[%emt 0:02:04]} 27. Re1 {[%emt 0:02:05]} Rxe1+ {[%emt 0:00:09]} 28. Bxe1 $18 {[%emt 0:00:04][%mdl 4096] Endgame KBB-KBN} Nc5 {[%emt 0:00:54]} 29. b3 {[%emt 0:02:45]} Ne4 {[%emt 0:00:22]} 30. Bg8 {[%emt 0:00:22]} h6 {[%emt 0:00:01]} 31. Bh7 {[%emt 0:00:55]} g5 {[%emt 0:00:01]} 32. h4 {[%emt 0:00:31]} (32. Kd1 $18) 32... Kd6 {[%emt 0:00:18]} 33. hxg5 {[%emt 0:00:35]} (33. fxg5 $142 fxg5 34. c4) 33... hxg5 {[%emt 0:00:01]} 34. Bxe4 {[%emt 0:00:27]} ({White should try} 34. Bf5 $16) 34... Bxe4 $16 {[%emt 0:00:01] KB-KB} 35. c3 {[%emt 0:00:29]} Kc5 {[%emt 0:00:59]} 36. Bf2+ {[%emt 0:00:14]} Kc6 $1 {[%emt 0:00:04]} 37. Bd4 {[%emt 0:00:34]} bxc3 {[%emt 0:02:35]} (37... gxf4 $14 38. gxf4 f5) 38. Bxc3 {[%emt 0:00:25] White is better.} Kb6 {[%emt 0:02:07]} 39. Bxf6 {[%emt 0:00:06]} gxf4 {[%emt 0:00:05]} 40. gxf4 {[%emt 0:00:00]} Bf5 {[%emt 0:00:00]} 41. Bd8+ {[%emt 0:07:58]} Ka6 {[%emt 0:01:23]} 42. Kb2 {[%emt 0:00:16]} Bh3 {[%emt 0:03:07]} 43. Kc3 {[%emt 0:02:53]} Be6 {[%emt 0:00:50]} 44. b4 {[%emt 0:11:11]} axb4+ {[%emt 0:00:07]} 45. Kxb4 {[%emt 0:00:03]} Kb7 {[%emt 0:00:10]} 46. Kc5 {[%emt 0:00:10]} Bf5 {[%emt 0:00:23]} 47. Kd6 {[%emt 0:00:45]} Bh3 {[%emt 0:00:06]} 48. a5 {[%emt 0:00:18]} Bg4 {[%emt 0:00:11]} 49. Bb6 {[%emt 0:00:15]} Bh3 {[%emt 0:00:06]} 50. Ke5 {[%emt 0:03:47]} Bg4 {[%emt 0:00:07] Black defended with fortune.  Weighted Error Value: White=0.05 (flawless) /Black=0.10 (very precise)} 1/2-1/2

[Event "Croatian 1B League 2022"]
[Site "Porec"]
[Date "2022.09.25"]
[Round "2.2"]
[White "Medvegy, Zoltan"]
[Black "Drnovsek, Gal"]
[Result "1-0"]
[ECO "A13"]
[WhiteElo "2526"]
[BlackElo "2393"]
[Annotator "TA"]
[PlyCount "85"]
[EventDate "2022.09.24"]
[EventType "team-tourn"]
[EventCountry "CRO"]
[SourceTitle "playchess.com"]
[Source "ChessBase"]
[SourceQuality "1"]
[TimeControl "40/5400+30:1800+30"]

{[%evp 16,85,26,25,25,25,26,29,21,29,32,41,51,26,21,25,24,34,31,35,104,115,155,135,127,137,118,122,129,94,99,73,104,105,98,90,100,73,73,76,72,73,138,138,151,130,129,130,198,193,308,294,277,193,244,180,173,162,198,190,185,180,198,198,679,679,670,642,628,613,29974,29975]} 1. Nf3 {[%emt 0:00:03]} d5 {[%emt 0:00:16]} 2. g3 {[%emt 0:00:11]} Nf6 {[%emt 0:00:14]} 3. Bg2 {[%emt 0:00:07]} e6 {[%emt 0:00:31]} 4. O-O {[%emt 0:00:13]} Be7 {[%emt 0:00:05]} 5. c4 {[%emt 0:00:19]} dxc4 {[%emt 0:03:22]} 6. Na3 {[%emt 0:00:44][%cal Bb1a3,Ba3c4,Bc4e5][%mdl 32]} c5 {[%emt 0:05:41]} 7. Nxc4 {[%emt 0:01:03]} Nc6 {[%emt 0:00:37]} 8. b3 {[%emt 0:03:16]} O-O {[%emt 0:02:13]} 9. Bb2 {[%emt 0:00:49]} Qc7 {[%emt 0:10:52] A13: English Opening: 1...e6.} 10. Nce5 {[%emt 0:07:50]} Rd8 {[%emt 0:08:39]} 11. Qc2 {[%emt 0:18:27]} Bd7 {[%emt 0:14:04] White has an edge.} 12. Rac1 {[%emt 0:06:48]} Nxe5 {[%emt 0:06:11]} 13. Bxe5 {[%emt 0:02:54]} Qb6 {[%emt 0:02:41]} 14. Ng5 {[%emt 0:08:26][%cal Bf3g5,Bg5e4,Be4c5,Bc5b7][%mdl 32]} g6 $1 {[%emt 0:00:23]} 15. Bxf6 {[%emt 0:11:51]} (15. h4 {with more complications.} Rac8 16. Qb2 Ng4 17. Bc3) 15... Bxf6 {[%emt 0:00:07]} 16. Ne4 $36 {[%emt 0:01:22][%mdl 2048] White fights for an advantage.} ({Of course not} 16. Qxc5 Qxc5 17. Rxc5 Be7 $17) 16... Be7 {[%emt 0:00:49]} 17. Nxc5 {[%emt 0:01:41] [#]} Bb5 $146 {[%emt 0:02:59]} (17... Bc6 $14) ({Predecessor:} 17... Bc6 18. Bxc6 Qxc6 19. Nd3 Qe4 20. Nf4 Qxc2 21. Rxc2 Ba3 22. Ng2 Rac8 23. Ne3 b5 {1-0 (53) Rozum,I (2560)-Shevchenko,K (2438) Voronezh 2016}) 18. Nxb7 $16 {[%emt 0:02:21]} Rac8 {[%emt 0:04:06]} 19. Qxc8 {[%emt 0:03:26]} Rxc8 {[%emt 0:00:05]} 20. Rxc8+ {[%emt 0:00:07]} Kg7 {[%emt 0:00:06]} 21. d3 {[%emt 0:05:48] Black must now prevent Rfc1.} Ba3 {[%emt 0:02:25] Prevents Rfc1.} 22. b4 {[%emt 0:01:51] Strongly threatening Rb1.} Ba6 {[%emt 0:03:53] [#] A strong pair of Bishops.} 23. Rb1 $1 {[%emt 0:09:12] Rc6 is the strong threat.} Bxb7 {[%emt 0:06:58]} 24. Rb8 {[%emt 0:08:20] The board is on fire.} Qc7 {[%emt 0:00:59]} 25. Rxb7 {[%emt 0:00:06]} Qc2 {[%emt 0:00:08][%csl LRa2,LRb1,LRe2]} 26. Re1 {[%emt 0:00:41]} Qd2 {[%emt 0:02:14]} 27. Rf1 {[%emt 0:00:43]} Qxe2 {[%emt 0:02:05]} 28. d4 {[%emt 0:02:23] Hoping for d5.} Qxa2 {[%emt 0:01:10]} ({Black should try} 28... Qd3) 29. d5 $1 {[%emt 0:01:16]} ({Don't play} 29. Rxa7 Qb3 $16) 29... exd5 {[%emt 0:01:18]} 30. Rxa7 {[%emt 0:01:18]} d4 {[%emt 0:01:28]} 31. Rd7 {[%emt 0:01:24] White is much more active.} Bxb4 {[%emt 0:04:36] [#]} (31... d3 $16) 32. Bd5 $1 $18 {[%emt 0:00:17]} Qa4 {[%emt 0:08:14]} (32... Qb2 {was necessary.} 33. Bxf7 Kf6) 33. Rxf7+ {[%emt 0:00:09]} Kh6 {[%emt 0:00:03]} 34. Rf4 {[%emt 0:01:23]} Bc5 {[%emt 0:01:02]} (34... d3 $142 35. Rb1 Qa5) 35. Be4 {[%emt 0:00:28]} Bd6 {[%emt 0:01:41]} 36. Rf3 {[%emt 0:00:30]} Bb4 {[%emt 0:01:26]} 37. h4 {[%emt 0:00:28]} Qe8 {[%emt 0:00:27]} 38. Bd3 {[%emt 0:00:28]} Qa8 {[%emt 0:01:18] [#]} 39. Kg2 {[%emt 0:00:21]} g5 $2 {[%emt 0:03:13]} (39... Be7 40. h5 Bd8) 40. hxg5+ {[%emt 0:00:00]} Kxg5 {[%emt 0:00:00]} 41. Rh1 {[%emt 0:01:12]} h5 {[%emt 0:00:25]} 42. Rh4 {[%emt 0:00:21] And now Rhf4 would win.} Bc5 {[%emt 0:02:44]} 43. Be4 {[%emt 0:02:00] Weighted Error Value: White=0.08 (flawless) /Black=0.50} 1-0

[Event "Croatian 1B League 2022"]
[Site "Porec"]
[Date "2022.09.25"]
[Round "2.3"]
[White "Golubovic, Boris"]
[Black "Rezan, Sasa"]
[Result "1/2-1/2"]
[ECO "B22"]
[WhiteElo "2360"]
[BlackElo "2388"]
[Annotator "TA"]
[PlyCount "39"]
[EventDate "2022.09.24"]
[EventType "team-tourn"]
[EventCountry "CRO"]
[SourceTitle "playchess.com"]
[Source "ChessBase"]
[SourceQuality "1"]
[TimeControl "40/5400+30:1800+30"]

{[%evp 13,39,11,23,20,13,0,0,0,0,0,0,0,0,0,0,12,11,-14,-25,-24,-19,-18,0,0,0,-10,-11,-10]} 1. e4 {[%emt 0:05:43]} c5 {[%emt 0:00:14]} 2. c3 {[%emt 0:00:25]} Nf6 {[%emt 0:00:25]} 3. e5 {[%emt 0:00:26]} Nd5 {[%emt 0:00:08]} 4. Nf3 {[%emt 0:00:16]} e6 {[%emt 0:00:37]} 5. d4 {[%emt 0:05:51]} cxd4 {[%emt 0:00:51]} 6. cxd4 {[%emt 0:00:10]} b6 {[%emt 0:01:00]} 7. Bd3 {[%emt 0:12:24]} Ba6 {[%emt 0:12:30]} 8. Bxa6 {[%emt 0:02:54] B22: Sicilian: 2 c3.} Nxa6 {[%emt 0:00:06]} 9. Bg5 {[%emt 0:00:12]} Qc8 {[%emt 0:06:27]} 10. O-O {[%emt 0:00:25]} h6 {[%emt 0:01:38] [#]} 11. Bd2 $146 {[%emt 0:01:18]} ({Predecessor:} 11. Bh4 Qb7 12. Nc3 Rc8 13. Nxd5 Qxd5 14. Rc1 Rxc1 15. Qxc1 Qb7 16. a3 Be7 17. Bxe7 Kxe7 {½-½ (38) Kuderinov,K (2454)-Prasanna Raghuram,R (2410) Ho Chi Minh City 2014}) 11... Be7 {[%emt 0:07:36]} 12. Qe2 {[%emt 0:01:57]} O-O {[%emt 0:05:42]} 13. Rc1 {[%emt 0:04:31]} Qb7 {[%emt 0:01:37]} 14. Qe4 {[%emt 0:01:42]} Rab8 {[%emt 0:00:50]} 15. Nc3 {[%emt 0:15:23]} (15. Qg4 {with more complications.} Kh7 16. Nc3 Rfc8 17. Nxd5 Qxd5 18. a3) 15... Nxc3 {[%emt 0:04:36]} 16. Qxb7 {[%emt 0:01:17]} Rxb7 {[%emt 0:00:19]} 17. Rxc3 {[%emt 0:00:16] The position is equal.} Rc7 {[%emt 0:04:46]} 18. Rac1 {[%emt 0:01:44]} Rfc8 {[%emt 0:01:57]} 19. Rxc7 {[%emt 0:00:33]} Rxc7 {[%emt 0:00:08]} 20. Rxc7 {[%emt 0:00:12] An interesting draw.  Weighted Error Value: White=0.05 (flawless) /Black=0.01 (flawless)} 1/2-1/2